[Event "*** SCC Grand Prix: Titled Tuesday Blitz"]
[Site "Chess.com"]
[Date "2020.10.06"]
[Round "7"]
[White "ajdemipopushi"]
[Black "MasterMK73"]
[Result "1-0"]
[WhiteElo "2351"]
[BlackElo "2205"]
[TimeControl "180+1"]
[EndTime "11:19:59 PDT"]
[Termination "ajdemipopushi won on time"]

1. Nf3 {[%clk 0:03:00.9]} 1... d5 {[%clk 0:02:58.9]} 2. g3 {[%clk 0:02:59.4]}
2... c5 {[%clk 0:02:56]} 3. Bg2 {[%clk 0:02:52.7]} 3... Nc6 {[%clk 0:02:55.7]}
4. d4 {[%clk 0:02:52.6]} 4... Nf6 {[%clk 0:02:52.4]} 5. O-O {[%clk 0:02:52]}
5... e6 {[%clk 0:02:51.5]} 6. c4 {[%clk 0:02:51.9]} 6... Be7 {[%clk 0:02:50.2]}
7. cxd5 {[%clk 0:02:51.1]} 7... exd5 {[%clk 0:02:46.7]} 8. Nc3 {[%clk
0:02:50.4]} 8... cxd4 {[%clk 0:02:45.5]} 9. Nxd4 {[%clk 0:02:47.2]} 9... O-O
{[%clk 0:02:46.1]} 10. b3 {[%clk 0:02:45]} 10... Re8 {[%clk 0:02:40.1]} 11. Bb2
{[%clk 0:02:44.4]} 11... Bf8 {[%clk 0:02:40.1]} 12. Rc1 {[%clk 0:02:43.3]} 12...
Bg4 {[%clk 0:02:36.8]} 13. h3 {[%clk 0:02:31.4]} 13... Bh5 {[%clk 0:02:34.7]}
14. Re1 {[%clk 0:02:22.2]} 14... Qa5 {[%clk 0:02:24]} 15. a3 {[%clk 0:01:55.3]}
15... Rad8 {[%clk 0:02:22.2]} 16. b4 {[%clk 0:01:52.6]} 16... Qc7 {[%clk
0:02:06.1]} 17. Na4 {[%clk 0:01:38.7]} 17... Qb8 {[%clk 0:01:40.5]} 18. Rxc6
{[%clk 0:01:29.6]} 18... bxc6 {[%clk 0:01:38.3]} 19. Nxc6 {[%clk 0:01:29.9]}
19... Qc7 {[%clk 0:01:34.1]} 20. Nxd8 {[%clk 0:01:29.5]} 20... Qxd8 {[%clk
0:01:33.7]} 21. Bxf6 {[%clk 0:01:19]} 21... Qxf6 {[%clk 0:01:33.3]} 22. Qxd5
{[%clk 0:01:17.8]} 22... Rxe2 {[%clk 0:01:21.2]} 23. Rxe2 {[%clk 0:01:17.6]}
23... Bxe2 {[%clk 0:01:20.5]} 24. Nc5 {[%clk 0:01:11.1]} 24... Bxc5 {[%clk
0:01:08.6]} 25. Qxc5 {[%clk 0:01:06.3]} 25... g6 {[%clk 0:00:56.4]} 26. Qxa7
{[%clk 0:01:05.3]} 26... Qa1+ {[%clk 0:00:47.8]} 27. Kh2 {[%clk 0:01:04.8]}
27... Bc4 {[%clk 0:00:43.9]} 28. a4 {[%clk 0:00:57.2]} 28... Kg7 {[%clk
0:00:33.5]} 29. a5 {[%clk 0:00:55.1]} 29... Qa2 {[%clk 0:00:28.3]} 30. Qd4+
{[%clk 0:00:50.2]} 30... Kg8 {[%clk 0:00:26.4]} 31. h4 {[%clk 0:00:46.1]} 31...
h5 {[%clk 0:00:25]} 32. Qc5 {[%clk 0:00:28.1]} 32... Kh7 {[%clk 0:00:23.2]} 33.
Be4 {[%clk 0:00:25.7]} 33... Be6 {[%clk 0:00:17.9]} 34. Qxh5+ {[%clk 0:00:23]}
34... Kg7 {[%clk 0:00:16.7]} 35. Qe5+ {[%clk 0:00:22.9]} 35... Kh7 {[%clk
0:00:16.8]} 36. Qc5 {[%clk 0:00:21.1]} 36... Qe2 {[%clk 0:00:13.7]} 37. Bg2
{[%clk 0:00:20]} 37... Qa6 {[%clk 0:00:08.6]} 38. h5 {[%clk 0:00:17.5]} 38...
gxh5 {[%clk 0:00:06.9]} 39. Qxh5+ {[%clk 0:00:16.2]} 39... Kg7 {[%clk
0:00:07.5]} 40. Qe5+ {[%clk 0:00:16]} 40... Kh7 {[%clk 0:00:06.7]} 41. Qc5
{[%clk 0:00:16]} 41... Qe2 {[%clk 0:00:05.7]} 42. Qd4 {[%clk 0:00:05.6]} 42...
Kg8 {[%clk 0:00:01.2]} 43. Kg1 {[%clk 0:00:01.7]} 1-0

[Event "*** SCC Grand Prix: Titled Tuesday Blitz"]
[Site "Chess.com"]
[Date "2020.10.06"]
[Round "7"]
[White "MrTattaglia"]
[Black "Joshukid"]
[Result "1/2-1/2"]
[WhiteElo "2877"]
[BlackElo "2725"]
[TimeControl "180+1"]
[EndTime "11:20:05 PDT"]
[Termination "Game drawn by repetition"]

1. Nf3 {[%clk 0:02:58]} 1... Nf6 {[%clk 0:02:54.3]} 2. c4 {[%clk 0:02:57.9]}
2... e6 {[%clk 0:02:53.1]} 3. g3 {[%clk 0:02:55.9]} 3... d5 {[%clk 0:02:48.9]}
4. Bg2 {[%clk 0:02:54.9]} 4... g6 {[%clk 0:02:49.5]} 5. O-O {[%clk 0:02:50.8]}
5... Bg7 {[%clk 0:02:50]} 6. d4 {[%clk 0:02:50.9]} 6... O-O {[%clk 0:02:48.3]}
7. Qc2 {[%clk 0:02:47.8]} 7... Nc6 {[%clk 0:02:46.5]} 8. Rd1 {[%clk 0:02:44.2]}
8... Ne4 {[%clk 0:02:45.9]} 9. a3 {[%clk 0:02:40]} 9... a5 {[%clk 0:02:42.7]}
10. Nc3 {[%clk 0:02:37.7]} 10... Nxc3 {[%clk 0:02:41.3]} 11. Qxc3 {[%clk
0:02:38.6]} 11... a4 {[%clk 0:02:41.1]} 12. Bf4 {[%clk 0:02:37.9]} 12... Re8
{[%clk 0:02:13.1]} 13. Rac1 {[%clk 0:02:36.2]} 13... h6 {[%clk 0:02:10.2]} 14.
Ne5 {[%clk 0:02:33.2]} 14... g5 {[%clk 0:01:53.9]} 15. Be3 {[%clk 0:02:30.5]}
15... Nxe5 {[%clk 0:01:42.9]} 16. dxe5 {[%clk 0:02:30.2]} 16... c6 {[%clk
0:01:43.5]} 17. Bc5 {[%clk 0:02:28.4]} 17... Qc7 {[%clk 0:01:38.5]} 18. Bd6
{[%clk 0:02:24.9]} 18... Qxd6 {[%clk 0:01:37.9]} 19. exd6 {[%clk 0:02:25]} 19...
Bxc3 {[%clk 0:01:38.8]} 20. Rxc3 {[%clk 0:02:25.4]} 20... Rd8 {[%clk 0:01:34.9]}
21. c5 {[%clk 0:02:20.4]} 21... Ra5 {[%clk 0:01:32.5]} 22. e4 {[%clk 0:02:19.9]}
22... Bd7 {[%clk 0:01:32.3]} 23. Rd4 {[%clk 0:02:14.4]} 23... b6 {[%clk
0:01:17.7]} 24. cxb6 {[%clk 0:02:05.1]} 24... Rb8 {[%clk 0:00:53.3]} 25. exd5
{[%clk 0:02:04.2]} 25... exd5 {[%clk 0:00:53.3]} 26. Re3 {[%clk 0:02:01.4]}
26... Be6 {[%clk 0:00:46.6]} 27. f4 {[%clk 0:01:44.9]} 27... Rxb6 {[%clk
0:00:35.6]} 28. h4 {[%clk 0:01:13.5]} 28... c5 {[%clk 0:00:35.4]} 29. Rxd5
{[%clk 0:00:54.9]} 29... Bxd5 {[%clk 0:00:35.7]} 30. d7 {[%clk 0:00:55.2]} 30...
Rd6 {[%clk 0:00:31.6]} 31. Re8+ {[%clk 0:00:53]} 31... Kg7 {[%clk 0:00:31.5]}
32. d8=Q {[%clk 0:00:52.4]} 32... Rxd8 {[%clk 0:00:31.9]} 33. Rxd8 {[%clk
0:00:53.3]} 33... Bxg2 {[%clk 0:00:32.2]} 34. Kxg2 {[%clk 0:00:53.7]} 34... gxf4
{[%clk 0:00:31.9]} 35. gxf4 {[%clk 0:00:53.6]} 35... Rb5 {[%clk 0:00:32.4]} 36.
Rd2 {[%clk 0:00:53.8]} 36... Rb3 {[%clk 0:00:32.2]} 37. Rc2 {[%clk 0:00:50.8]}
37... Kg6 {[%clk 0:00:28.6]} 38. Rxc5 {[%clk 0:00:47]} 38... Rxb2+ {[%clk
0:00:27.9]} 39. Kf3 {[%clk 0:00:47.1]} 39... Rb3+ {[%clk 0:00:28.2]} 40. Kg4
{[%clk 0:00:47.5]} 40... Rxa3 {[%clk 0:00:20.6]} 41. Rc6+ {[%clk 0:00:47.7]}
41... Kg7 {[%clk 0:00:20.5]} 42. Ra6 {[%clk 0:00:44.2]} 42... Ra1 {[%clk
0:00:19.6]} 43. Kh5 {[%clk 0:00:44.2]} 43... a3 {[%clk 0:00:14.7]} 44. Rxh6
{[%clk 0:00:43.3]} 44... Rf1 {[%clk 0:00:08.4]} 45. Ra6 {[%clk 0:00:43.2]} 45...
Rxf4 {[%clk 0:00:08.5]} 46. Rxa3 {[%clk 0:00:42.5]} 46... Rf6 {[%clk 0:00:08.9]}
47. Kg5 {[%clk 0:00:42.1]} 47... Rg6+ {[%clk 0:00:09.1]} 48. Kf5 {[%clk
0:00:42.4]} 48... Rf6+ {[%clk 0:00:09.8]} 49. Ke5 {[%clk 0:00:42.4]} 49... Rh6
{[%clk 0:00:09.6]} 50. Rh3 {[%clk 0:00:41.7]} 50... Rf6 {[%clk 0:00:09.1]} 51.
h5 {[%clk 0:00:41.5]} 51... Rf1 {[%clk 0:00:09.3]} 52. Ke4 {[%clk 0:00:39.5]}
52... Kh6 {[%clk 0:00:09.7]} 53. Ke5 {[%clk 0:00:39.9]} 53... Rf2 {[%clk
0:00:09.9]} 54. Ke4 {[%clk 0:00:40.1]} 54... Rf1 {[%clk 0:00:10.5]} 55. Ke3
{[%clk 0:00:40.4]} 55... Rf5 {[%clk 0:00:10.7]} 56. Ke4 {[%clk 0:00:40.5]} 56...
Rxh5 {[%clk 0:00:11.2]} 57. Rg3 {[%clk 0:00:40.9]} 57... Rg5 {[%clk 0:00:11.6]}
58. Ra3 {[%clk 0:00:38.5]} 58... Kg6 {[%clk 0:00:12.3]} 59. Kf4 {[%clk
0:00:38.7]} 59... f6 {[%clk 0:00:11.3]} 60. Ra8 {[%clk 0:00:38.6]} 60... Rf5+
{[%clk 0:00:11.9]} 61. Kg4 {[%clk 0:00:38.7]} 61... Rg5+ {[%clk 0:00:12.6]} 62.
Kf4 {[%clk 0:00:39.2]} 62... Rf5+ {[%clk 0:00:13.3]} 63. Kg4 {[%clk 0:00:39.5]}
63... Rg5+ {[%clk 0:00:14.1]} 64. Kf4 {[%clk 0:00:38.3]} 1/2-1/2

[Event "*** SCC Grand Prix: Titled Tuesday Blitz"]
[Site "Chess.com"]
[Date "2020.10.06"]
[Round "7"]
[White "norwaytoadog"]
[Black "Caterpiller35"]
[Result "1-0"]
[WhiteElo "2314"]
[BlackElo "2488"]
[TimeControl "180+1"]
[EndTime "11:20:08 PDT"]
[Termination "norwaytoadog won on time"]

1. e4 {[%clk 0:02:58.7]} 1... c5 {[%clk 0:01:00.8]} 2. Nf3 {[%clk 0:02:57.9]}
2... Nc6 {[%clk 0:01:00.7]} 3. Bb5 {[%clk 0:02:57.5]} 3... g6 {[%clk 0:00:54.3]}
4. Bxc6 {[%clk 0:02:57.1]} 4... bxc6 {[%clk 0:00:54.5]} 5. O-O {[%clk
0:02:55.3]} 5... Bg7 {[%clk 0:00:54.6]} 6. Re1 {[%clk 0:02:54.1]} 6... Nh6
{[%clk 0:00:54.5]} 7. c3 {[%clk 0:02:53.8]} 7... O-O {[%clk 0:00:55]} 8. d4
{[%clk 0:02:53.9]} 8... cxd4 {[%clk 0:00:55.9]} 9. cxd4 {[%clk 0:02:54]} 9... d5
{[%clk 0:00:56.8]} 10. e5 {[%clk 0:02:54.2]} 10... Bg4 {[%clk 0:00:56.8]} 11.
Nbd2 {[%clk 0:02:49.5]} 11... Rb8 {[%clk 0:00:50.8]} 12. h3 {[%clk 0:02:48.5]}
12... Bxf3 {[%clk 0:00:50.2]} 13. Nxf3 {[%clk 0:02:45]} 13... f6 {[%clk
0:00:47.3]} 14. exf6 {[%clk 0:02:44.6]} 14... exf6 {[%clk 0:00:45.2]} 15. b3
{[%clk 0:02:44.6]} 15... Nf7 {[%clk 0:00:44.1]} 16. Ba3 {[%clk 0:02:31.4]} 16...
Re8 {[%clk 0:00:44.1]} 17. Qd3 {[%clk 0:02:27]} 17... Re4 {[%clk 0:00:38.1]} 18.
Rxe4 {[%clk 0:02:17.2]} 18... dxe4 {[%clk 0:00:39]} 19. Qxe4 {[%clk 0:02:17.2]}
19... Qa5 {[%clk 0:00:39.7]} 20. Bc5 {[%clk 0:02:07.8]} 20... Qb5 {[%clk
0:00:34.7]} 21. Re1 {[%clk 0:02:01.4]} 21... Bf8 {[%clk 0:00:15.4]} 22. b4
{[%clk 0:01:46.5]} 22... a5 {[%clk 0:00:13.5]} 23. a3 {[%clk 0:01:45.7]} 23...
axb4 {[%clk 0:00:13.2]} 24. axb4 {[%clk 0:01:45.9]} 24... Bxc5 {[%clk
0:00:12.7]} 25. bxc5 {[%clk 0:01:45.9]} 25... Rd8 {[%clk 0:00:12.2]} 26. Qe7
{[%clk 0:01:38.7]} 26... Kg7 {[%clk 0:00:12.3]} 27. Re6 {[%clk 0:01:36.6]} 27...
Qb1+ {[%clk 0:00:12.4]} 28. Kh2 {[%clk 0:01:33.7]} 28... Qf5 {[%clk 0:00:13.3]}
29. Rxc6 {[%clk 0:01:25.9]} 29... g5 {[%clk 0:00:13.3]} 30. Rc7 {[%clk
0:01:24.7]} 30... Rf8 {[%clk 0:00:13.5]} 31. Qe3 {[%clk 0:01:16.2]} 31... h5
{[%clk 0:00:12.7]} 32. Re7 {[%clk 0:01:09.3]} 32... Kg6 {[%clk 0:00:12.6]} 33.
Qe4 {[%clk 0:01:08.7]} 33... Rd8 {[%clk 0:00:11.4]} 34. g4 {[%clk 0:01:04.4]}
34... Qxe4 {[%clk 0:00:10.6]} 35. Rxe4 {[%clk 0:01:02.6]} 35... hxg4 {[%clk
0:00:11.5]} 36. hxg4 {[%clk 0:01:02.7]} 36... Nh6 {[%clk 0:00:11]} 37. Kg3
{[%clk 0:01:01.5]} 37... Ng8 {[%clk 0:00:10.5]} 38. Re3 {[%clk 0:00:56.5]} 38...
Nh6 {[%clk 0:00:09.8]} 39. Rd3 {[%clk 0:00:55.9]} 39... f5 {[%clk 0:00:10.1]}
40. Ne5+ {[%clk 0:00:54.8]} 40... Kf6 {[%clk 0:00:09.5]} 41. f3 {[%clk
0:00:48.5]} 41... f4+ {[%clk 0:00:08.4]} 42. Kf2 {[%clk 0:00:47.4]} 42... Ng8
{[%clk 0:00:07]} 43. Nc4 {[%clk 0:00:44.3]} 43... Ne7 {[%clk 0:00:06.4]} 44. Nd2
{[%clk 0:00:42]} 44... Nd5 {[%clk 0:00:05.8]} 45. Ne4+ {[%clk 0:00:42.2]} 45...
Kg6 {[%clk 0:00:06.1]} 46. Ra3 {[%clk 0:00:40]} 46... Rb8 {[%clk 0:00:03.7]} 47.
Ra6+ {[%clk 0:00:34.9]} 47... Kg7 {[%clk 0:00:03.9]} 48. Nxg5 {[%clk 0:00:32.5]}
48... Rb2+ {[%clk 0:00:04.1]} 49. Ke1 {[%clk 0:00:32.1]} 49... Rb3 {[%clk
0:00:02.8]} 50. c6 {[%clk 0:00:29.7]} 50... Re3+ {[%clk 0:00:02.4]} 51. Kd2
{[%clk 0:00:29.1]} 51... Rc3 {[%clk 0:00:01.3]} 52. Ne6+ {[%clk 0:00:27.1]} 1-0

[Event "*** SCC Grand Prix: Titled Tuesday Blitz"]
[Site "Chess.com"]
[Date "2020.10.06"]
[Round "7"]
[White "icychess54"]
[Black "CM_rui"]
[Result "1-0"]
[WhiteElo "2268"]
[BlackElo "2360"]
[TimeControl "180+1"]
[EndTime "11:20:10 PDT"]
[Termination "icychess54 won on time"]

1. c4 {[%clk 0:03:00.9]} 1... Nf6 {[%clk 0:02:59.9]} 2. Nf3 {[%clk 0:02:59.4]}
2... e6 {[%clk 0:03:00.3]} 3. Nc3 {[%clk 0:02:56.9]} 3... c5 {[%clk 0:02:59.7]}
4. d4 {[%clk 0:02:56.3]} 4... cxd4 {[%clk 0:02:58.9]} 5. Nxd4 {[%clk 0:02:55.9]}
5... Be7 {[%clk 0:02:54.7]} 6. e3 {[%clk 0:02:50.4]} 6... O-O {[%clk 0:02:53.7]}
7. Be2 {[%clk 0:02:50.7]} 7... d6 {[%clk 0:02:50.6]} 8. O-O {[%clk 0:02:50.8]}
8... Nbd7 {[%clk 0:02:45.9]} 9. b3 {[%clk 0:02:49.6]} 9... a6 {[%clk 0:02:44.6]}
10. Bb2 {[%clk 0:02:49.3]} 10... Qc7 {[%clk 0:02:42.2]} 11. Qd2 {[%clk 0:02:48]}
11... b6 {[%clk 0:02:42]} 12. Nc6 {[%clk 0:02:35.9]} 12... Qxc6 {[%clk
0:02:35.9]} 13. Bf3 {[%clk 0:02:35.8]} 13... d5 {[%clk 0:02:35.5]} 14. cxd5
{[%clk 0:02:36.1]} 14... exd5 {[%clk 0:02:29.5]} 15. Nxd5 {[%clk 0:02:34.4]}
15... Nxd5 {[%clk 0:02:29.1]} 16. Bxd5 {[%clk 0:02:30.6]} 16... Qd6 {[%clk
0:02:28.8]} 17. Ba3 {[%clk 0:01:56.4]} 17... Nc5 {[%clk 0:02:17.5]} 18. Rfd1
{[%clk 0:01:33.8]} 18... Ra7 {[%clk 0:02:12.8]} 19. Bxf7+ {[%clk 0:01:31]} 19...
Rxf7 {[%clk 0:02:08]} 20. Qxd6 {[%clk 0:01:31]} 20... Bxd6 {[%clk 0:02:08.2]}
21. Rxd6 {[%clk 0:01:31.6]} 21... Bf5 {[%clk 0:01:40.7]} 22. Rxb6 {[%clk
0:01:26.8]} 22... Nd7 {[%clk 0:01:39.7]} 23. Rd1 {[%clk 0:01:07.8]} 23... h6
{[%clk 0:01:25.9]} 24. Rbd6 {[%clk 0:00:46.4]} 24... Ne5 {[%clk 0:01:23.6]} 25.
Bc5 {[%clk 0:00:42.9]} 25... Rac7 {[%clk 0:01:20.8]} 26. b4 {[%clk 0:00:40.6]}
26... a5 {[%clk 0:01:16.5]} 27. a3 {[%clk 0:00:39.9]} 27... axb4 {[%clk
0:01:16.5]} 28. axb4 {[%clk 0:00:39.6]} 28... Nc4 {[%clk 0:01:14.6]} 29. Rd8+
{[%clk 0:00:37.3]} 29... Kh7 {[%clk 0:01:14.2]} 30. Rb8 {[%clk 0:00:33.8]} 30...
Be4 {[%clk 0:01:08.6]} 31. f3 {[%clk 0:00:32.1]} 31... Bg6 {[%clk 0:01:00.6]}
32. Rdd8 {[%clk 0:00:30.1]} 32... Bc2 {[%clk 0:00:54.6]} 33. h4 {[%clk
0:00:24.3]} 33... h5 {[%clk 0:00:51.8]} 34. Ra8 {[%clk 0:00:19.8]} 34... Rf6
{[%clk 0:00:40.7]} 35. e4 {[%clk 0:00:16.7]} 35... Kg6 {[%clk 0:00:22.2]} 36.
Rac8 {[%clk 0:00:14]} 36... Rb7 {[%clk 0:00:17.7]} 37. Kf2 {[%clk 0:00:09.3]}
37... Ba4 {[%clk 0:00:15.1]} 38. Rb8 {[%clk 0:00:09.1]} 38... Rbf7 {[%clk
0:00:12.6]} 39. Rd4 {[%clk 0:00:05.8]} 39... Ne5 {[%clk 0:00:10.9]} 40. Kg3
{[%clk 0:00:05.3]} 40... Bc6 {[%clk 0:00:09.8]} 41. Rbd8 {[%clk 0:00:04.9]}
41... Bb7 {[%clk 0:00:08.4]} 42. R8d6 {[%clk 0:00:05.1]} 42... Nc6 {[%clk
0:00:08]} 43. Rxf6+ {[%clk 0:00:04.9]} 43... gxf6 {[%clk 0:00:08.4]} 44. Rd6
{[%clk 0:00:04.7]} 44... Ne5 {[%clk 0:00:07.9]} 45. Bd4 {[%clk 0:00:04.7]} 45...
Nd7 {[%clk 0:00:07.6]} 46. e5 {[%clk 0:00:04.4]} 46... Kf5 {[%clk 0:00:06.7]}
47. exf6 {[%clk 0:00:04.5]} 47... Nf8 {[%clk 0:00:03]} 48. Rb6 {[%clk
0:00:03.7]} 48... Ne6 {[%clk 0:00:03]} 49. Be3 {[%clk 0:00:03.5]} 49... Kxf6
{[%clk 0:00:02.8]} 50. Bg5+ {[%clk 0:00:03.3]} 50... Kf5 {[%clk 0:00:02.4]} 51.
Be3 {[%clk 0:00:03.3]} 51... Ng7 {[%clk 0:00:01.4]} 52. Bc5 {[%clk 0:00:03.3]}
1-0

[Event "*** SCC Grand Prix: Titled Tuesday Blitz"]
[Site "Chess.com"]
[Date "2020.10.06"]
[Round "7"]
[White "nurgyulsalimova"]
[Black "Rodalquilar"]
[Result "0-1"]
[WhiteElo "2609"]
[BlackElo "2784"]
[TimeControl "180+1"]
[EndTime "11:20:12 PDT"]
[Termination "Rodalquilar won by resignation"]

1. e4 {[%clk 0:03:00.9]} 1... d5 {[%clk 0:03:00]} 2. exd5 {[%clk 0:03:00.8]}
2... Qxd5 {[%clk 0:03:00.9]} 3. Nc3 {[%clk 0:03:01.4]} 3... Qa5 {[%clk
0:03:01.1]} 4. d4 {[%clk 0:02:57.1]} 4... Nf6 {[%clk 0:03:01.3]} 5. Nf3 {[%clk
0:02:56.2]} 5... Bf5 {[%clk 0:03:01.4]} 6. Bc4 {[%clk 0:02:51.3]} 6... e6 {[%clk
0:03:01.6]} 7. Bd2 {[%clk 0:02:49.7]} 7... Bb4 {[%clk 0:03:01.8]} 8. a3 {[%clk
0:02:45.1]} 8... Bxc3 {[%clk 0:03:02]} 9. Bxc3 {[%clk 0:02:46]} 9... Qb6 {[%clk
0:03:02.6]} 10. Bb4 {[%clk 0:02:35.6]} 10... a5 {[%clk 0:02:45.6]} 11. Bc5
{[%clk 0:02:35]} 11... Qxb2 {[%clk 0:02:45.4]} 12. O-O {[%clk 0:02:23.7]} 12...
b6 {[%clk 0:02:35.3]} 13. d5 {[%clk 0:01:02.1]} 13... bxc5 {[%clk 0:02:21.7]}
14. dxe6 {[%clk 0:01:02.2]} 14... fxe6 {[%clk 0:02:07.3]} 15. Ng5 {[%clk
0:00:38.6]} 15... O-O {[%clk 0:01:04.3]} 16. Qf3 {[%clk 0:00:37.8]} 16... Qxc2
{[%clk 0:01:04.7]} 17. Rac1 {[%clk 0:00:28.2]} 17... Qd2 {[%clk 0:00:59]} 18.
Nxe6 {[%clk 0:00:21.5]} 18... Be4 {[%clk 0:00:46.9]} 19. Nxf8+ {[%clk
0:00:19.7]} 19... Kxf8 {[%clk 0:00:44.9]} 20. Qg3 {[%clk 0:00:18.4]} 20... Qd6
{[%clk 0:00:42.4]} 21. Qh4 {[%clk 0:00:12.5]} 21... Nbd7 {[%clk 0:00:41.7]} 22.
Rfd1 {[%clk 0:00:12.6]} 22... Qe5 {[%clk 0:00:27]} 23. Qh3 {[%clk 0:00:12.9]}
23... Qf5 {[%clk 0:00:21.6]} 24. Qe3 {[%clk 0:00:11.6]} 24... Re8 {[%clk
0:00:18.1]} 25. Qg3 {[%clk 0:00:10.4]} 25... Qg6 {[%clk 0:00:15.2]} 26. f3
{[%clk 0:00:06.3]} 26... Qxg3 {[%clk 0:00:15.1]} 27. hxg3 {[%clk 0:00:07.2]}
27... Bf5 {[%clk 0:00:13.6]} 28. Kf2 {[%clk 0:00:07.7]} 28... Be6 {[%clk
0:00:14]} 29. Be2 {[%clk 0:00:06.9]} 29... Bd5 {[%clk 0:00:10.2]} 30. g4 {[%clk
0:00:06.7]} 30... c6 {[%clk 0:00:10.7]} 31. g5 {[%clk 0:00:06.5]} 31... Nh5
{[%clk 0:00:10.5]} 32. g3 {[%clk 0:00:07]} 32... g6 {[%clk 0:00:11.1]} 33. f4
{[%clk 0:00:06.4]} 33... Ng7 {[%clk 0:00:11.3]} 34. Bg4 {[%clk 0:00:06.6]} 34...
Nf5 {[%clk 0:00:11.3]} 35. Bxf5 {[%clk 0:00:04]} 35... gxf5 {[%clk 0:00:11.5]}
36. Re1 {[%clk 0:00:04.5]} 36... Re4 {[%clk 0:00:10.6]} 37. Re3 {[%clk
0:00:03.8]} 37... c4 {[%clk 0:00:10.4]} 38. Rxe4 {[%clk 0:00:03.7]} 38... fxe4
{[%clk 0:00:11.3]} 39. Ke3 {[%clk 0:00:03.9]} 39... Nc5 {[%clk 0:00:11.6]} 40.
Rb1 {[%clk 0:00:03.8]} 40... Nb3 {[%clk 0:00:11.9]} 41. g4 {[%clk 0:00:04]}
41... c3 {[%clk 0:00:11.7]} 42. f5 {[%clk 0:00:02.3]} 42... c2 {[%clk 0:00:12]}
43. Re1 {[%clk 0:00:02.7]} 43... c1=Q+ {[%clk 0:00:12.5]} 44. Rxc1 {[%clk
0:00:03.4]} 44... Nxc1 {[%clk 0:00:13.2]} 45. g6 {[%clk 0:00:03.7]} 45... hxg6
{[%clk 0:00:12.7]} 46. fxg6 {[%clk 0:00:04.6]} 46... Kg7 {[%clk 0:00:13.1]} 47.
g5 {[%clk 0:00:05.5]} 47... Kxg6 {[%clk 0:00:13.3]} 48. Kd2 {[%clk 0:00:06.4]}
48... Nb3+ {[%clk 0:00:13.4]} 49. Kc3 {[%clk 0:00:06.5]} 49... e3 {[%clk
0:00:13.4]} 50. Kd3 {[%clk 0:00:06.5]} 50... Kxg5 {[%clk 0:00:13.6]} 51. Kxe3
{[%clk 0:00:07]} 51... c5 {[%clk 0:00:14.2]} 52. Kd3 {[%clk 0:00:07.9]} 52...
c4+ {[%clk 0:00:14.6]} 53. Kc3 {[%clk 0:00:08.8]} 53... Kf5 {[%clk 0:00:14.9]}
54. a4 {[%clk 0:00:09.5]} 54... Ke4 {[%clk 0:00:14.6]} 55. Kb2 {[%clk
0:00:10.4]} 55... Kd3 {[%clk 0:00:15]} 56. Ka3 {[%clk 0:00:10.8]} 56... c3
{[%clk 0:00:14.5]} 57. Ka2 {[%clk 0:00:11.7]} 57... c2 {[%clk 0:00:15]} 58. Kb2
{[%clk 0:00:09]} 58... c1=Q+ {[%clk 0:00:15.4]} 0-1

[Event "*** SCC Grand Prix: Titled Tuesday Blitz"]
[Site "Chess.com"]
[Date "2020.10.06"]
[Round "7"]
[White "nocnypako"]
[Black "The_Machine04"]
[Result "1-0"]
[WhiteElo "2559"]
[BlackElo "2331"]
[TimeControl "180+1"]
[EndTime "11:20:13 PDT"]
[Termination "nocnypako won on time"]

1. d4 {[%clk 0:03:00.9]} 1... d6 {[%clk 0:02:59.6]} 2. e4 {[%clk 0:02:59.6]}
2... Nf6 {[%clk 0:02:58.1]} 3. Nc3 {[%clk 0:02:59]} 3... e5 {[%clk 0:02:57.8]}
4. Nf3 {[%clk 0:02:58.8]} 4... Nbd7 {[%clk 0:02:56.5]} 5. g3 {[%clk 0:02:56.7]}
5... b6 {[%clk 0:02:53.6]} 6. Bg2 {[%clk 0:02:55.7]} 6... Ba6 {[%clk 0:02:53.6]}
7. h3 {[%clk 0:02:51]} 7... Be7 {[%clk 0:02:52.4]} 8. Be3 {[%clk 0:02:51]} 8...
O-O {[%clk 0:02:50.9]} 9. Qd2 {[%clk 0:02:51]} 9... c5 {[%clk 0:02:48.5]} 10.
dxe5 {[%clk 0:02:27.5]} 10... Nxe5 {[%clk 0:02:40.3]} 11. Nxe5 {[%clk
0:02:27.5]} 11... dxe5 {[%clk 0:02:41.2]} 12. O-O-O {[%clk 0:02:26.8]} 12...
Qxd2+ {[%clk 0:02:23.6]} 13. Rxd2 {[%clk 0:02:27.7]} 13... Rfd8 {[%clk
0:02:23.9]} 14. Rhd1 {[%clk 0:02:26.2]} 14... Rxd2 {[%clk 0:02:22.7]} 15. Rxd2
{[%clk 0:02:27.1]} 15... Rd8 {[%clk 0:02:22.7]} 16. Bg5 {[%clk 0:02:25]} 16...
Bb7 {[%clk 0:02:07.7]} 17. Rxd8+ {[%clk 0:02:21.9]} 17... Bxd8 {[%clk
0:02:08.6]} 18. Nb5 {[%clk 0:02:19.6]} 18... a6 {[%clk 0:01:22.8]} 19. Nd6
{[%clk 0:02:18.8]} 19... Nxe4 {[%clk 0:00:59]} 20. Bxe4 {[%clk 0:02:14]} 20...
Bxg5+ {[%clk 0:00:56.7]} 21. f4 {[%clk 0:01:48.3]} 21... Bxe4 {[%clk 0:00:37]}
22. Nxe4 {[%clk 0:01:49.2]} 22... Bh6 {[%clk 0:00:37.2]} 23. Kd1 {[%clk
0:01:43.9]} 23... exf4 {[%clk 0:00:36.3]} 24. g4 {[%clk 0:01:44.1]} 24... g6
{[%clk 0:00:24.8]} 25. Ke2 {[%clk 0:01:37.5]} 25... Bg7 {[%clk 0:00:24.3]} 26.
b3 {[%clk 0:01:31.1]} 26... Be5 {[%clk 0:00:20.1]} 27. Kf3 {[%clk 0:01:30.4]}
27... Kg7 {[%clk 0:00:19.4]} 28. Nd2 {[%clk 0:01:28.3]} 28... Bc7 {[%clk
0:00:16.7]} 29. Ke4 {[%clk 0:01:26.6]} 29... Kf6 {[%clk 0:00:14.9]} 30. Nf3
{[%clk 0:01:26.4]} 30... h6 {[%clk 0:00:13]} 31. Kd5 {[%clk 0:01:26.3]} 31...
Ke7 {[%clk 0:00:09.2]} 32. Kc6 {[%clk 0:01:24.9]} 32... Bd8 {[%clk 0:00:09]} 33.
Kd5 {[%clk 0:01:07.2]} 33... f5 {[%clk 0:00:06.3]} 34. gxf5 {[%clk 0:01:07.1]}
34... g5 {[%clk 0:00:06.5]} 35. a4 {[%clk 0:00:36.5]} 35... Kf6 {[%clk
0:00:05.2]} 36. Ke4 {[%clk 0:00:35.7]} 36... h5 {[%clk 0:00:04]} 37. Ne5 {[%clk
0:00:21]} 37... Bc7 {[%clk 0:00:02.8]} 38. Nd3 {[%clk 0:00:16.6]} 38... Bd6
{[%clk 0:00:01.1]} 39. c4 {[%clk 0:00:15.9]} 39... Bc7 {[%clk 0:00:01.5]} 40.
Nf2 {[%clk 0:00:15.8]} 40... Bd6 {[%clk 0:00:01.6]} 41. Nd3 {[%clk 0:00:15.7]}
41... Bc7 {[%clk 0:00:01.7]} 42. a5 {[%clk 0:00:15.5]} 42... Bd6 {[%clk
0:00:02]} 43. axb6 {[%clk 0:00:15.1]} 43... Bb8 {[%clk 0:00:02.9]} 44. Nxc5
{[%clk 0:00:13.8]} 44... g4 {[%clk 0:00:03.1]} 45. hxg4 {[%clk 0:00:14.7]} 45...
hxg4 {[%clk 0:00:03.9]} 46. Nd7+ {[%clk 0:00:14.5]} 46... Kg5 {[%clk 0:00:04.8]}
47. Nxb8 {[%clk 0:00:11.3]} 47... f3 {[%clk 0:00:05.2]} 48. Ke3 {[%clk
0:00:11.3]} 48... Kh4 {[%clk 0:00:05.2]} 49. f6 {[%clk 0:00:09.1]} 49... Kh3
{[%clk 0:00:03.2]} 50. f7 {[%clk 0:00:08.9]} 50... f2 {[%clk 0:00:03]} 51. f8=Q
{[%clk 0:00:08.1]} 51... g3 {[%clk 0:00:03]} 52. Qxf2 {[%clk 0:00:07.9]} 52...
gxf2 {[%clk 0:00:02.7]} 53. Kxf2 {[%clk 0:00:08.8]} 1-0